[Event "45th FIDE Womens Olympiad 2024"]
[Site "Budapest"]
[Date "2024.09.16"]
[Round "6.9"]
[White "Dzagnidze, Nana"]
[Black "Munkhzul, Turmunkh"]
[Result "1/2-1/2"]
[ECO "D37"]
[WhiteElo "2508"]
[BlackElo "2256"]
[Annotator "TA"]
[PlyCount "92"]
[EventDate "2024.09.05"]
[EventType "team-tourn"]
[EventCountry "HUN"]
[SourceTitle "playchess.com"]
[Source "ChessBase"]
[SourceQuality "1"]
[WhiteTeam "Georgia"]
[BlackTeam "Mongolia"]
[WhiteTeamCountry "GEO"]
[BlackTeamCountry "MGL"]
[TimeControl "40/5400+30:1800+30"]

{[%evp 18,92,24,27,23,12,29,22,39,40,36,44,53,8,7,8,13,0,0,0,6,7,8,0,8,0,0,0,0,0,0,0,18,18,22,0,8,0,7,0,0,0,3,0,0,0,0,0,6,0,8,0,8,0,0,0,8,0,0,0,0,0,2,0,0,0,0,0,0,0,0,0,0,0,0,0,0]} 1. Nf3 {[%emt 0:00:04]} Nf6 {[%emt 0:00:13]} 2. c4 {[%emt 0:00:11]} e6 {[%emt 0:00:11]} 3. Nc3 {[%emt 0:00:24]} d5 {[%emt 0:00:10]} 4. d4 {[%emt 0:00:11]} Be7 {[%emt 0:00:12]} 5. Bf4 {[%emt 0:00:19]} O-O {[%emt 0:00:24]} 6. a3 {[%emt 0:00:21]} c5 {[%emt 0:00:13]} 7. dxc5 {[%emt 0:01:16]} Bxc5 {[%emt 0:00:14]} 8. e3 {[%emt 0:01:03]} dxc4 {[%emt 0:00:15]} 9. Bxc4 {[%emt 0:03:51]} Qxd1+ {[%emt 0:01:29]} 10. Rxd1 {[%emt 0:00:11]} a6 {[%emt 0:00:22] Against Nb5} 11. Ne5 {[%emt 0:12:53]} Nbd7 {[%emt 0:10:00]} 12. Be2 {[%emt 0:06:37]} Nxe5 {[%emt 0:06:22]} 13. Bxe5 {[%emt 0:00:08]} b5 {[%emt 0:01:20]} 14. Bf3 {[%emt 0:29:16] Prevents Bb7.} Ra7 {[%emt 0:00:39]} 15. Bd6 {[%emt 0:01:10]} Bxd6 {[%emt 0:00:26] The position is equal.} 16. Rxd6 {[%emt 0:00:02]} Rd7 {[%emt 0:02:55]} 17. Rb6 {[%emt 0:00:31]} Rfd8 {[%emt 0:02:40]} 18. O-O {[%emt 0:00:35]} Rd6 {[%emt 0:04:22]} 19. Rxd6 {[%emt 0:03:31]} Rxd6 {[%emt 0:00:21]} 20. Rc1 {[%emt 0:00:03][%cal Oc3b5] Nxb5! is the strong threat.} Bd7 {[%emt 0:07:11]} 21. g4 {[%emt 0:12:57]} h6 {[%emt 0:03:34]} 22. Ne4 {[%emt 0:01:49]} Nxe4 {[%emt 0:02:56]} 23. Bxe4 $11 {[%emt 0:02:13][%mdl 4096] Endgame. KRB-KRB} Kf8 {[%emt 0:02:12]} 24. Rc7 {[%emt 0:01:17]} a5 {[%emt 0:03:49]} 25. Kf1 {[%emt 0:03:27]} Ke8 {[%emt 0:02:03]} 26. Ke1 {[%emt 0:00:26]} Kd8 {[%emt 0:09:25]} 27. Ra7 {[%emt 0:00:11]} a4 {[%emt 0:00:30]} 28. Ra8+ {[%emt 0:03:24]} Ke7 $1 {[%emt 0:00:46]} 29. Ra7 {[%emt 0:00:47]} Kd8 {[%emt 0:00:13]} 30. Ra8+ {[%emt 0:02:55]} Ke7 $1 {[%emt 0:00:06]} 31. Rb8 {[%emt 0:01:43]} f5 {[%emt 0:07:52]} 32. Bf3 {[%emt 0:00:24]} Kf6 {[%emt 0:07:37]} 33. h4 {[%emt 0:04:16]} Ke7 {[%emt 0:03:16]} 34. Rb7 {[%emt 0:04:56]} Kf6 {[%emt 0:01:58]} 35. Rc7 {[%emt 0:00:51]} Ke7 {[%emt 0:01:17]} 36. Be2 {[%emt 0:02:07]} Rb6 {[%emt 0:05:12]} 37. Kd2 {[%emt 0:00:20]} Kd6 {[%emt 0:00:47]} 38. Ra7 {[%emt 0:01:01]} b4 {[%emt 0:06:34]} 39. Bd1 {[%emt 0:00:14]} b3 {[%emt 0:02:21]} 40. f4 {[%emt 0:01:50]} fxg4 {[%emt 0:00:45]} 41. Bxg4 {[%emt 0:30:05]} Rc6 {[%emt 0:30:17]} 42. Bd1 {[%emt 0:00:00] Inhibits Rc2+.} (42. Rxa4 $2 {perishes.} Rc2+ 43. Kd1 Bxa4 $19) 42... Rc5 {[%emt 0:00:00]} 43. Ra6+ {[%emt 0:00:00]} Ke7 {[%emt 0:00:00]} 44. Ra7 {[%emt 0:00:00]} Kd6 {[%emt 0:00:00]} 45. Ra6+ {[%emt 0:00:00]} Ke7 {[%emt 0:00:00]} 46. Ra7 {[%emt 0:00:00]} Kd6 {[%emt 0:00:00] Weighted Error Value: White=0.05 (flawless) /Black=0.02 (flawless) .  Inaccurate:     	White=1     	---        OK:         	White=10    	Black=21     Strong:       	---       	Black=2} 1/2-1/2

[Event "45th FIDE Womens Olympiad 2024"]
[Site "Budapest"]
[Date "2024.09.16"]
[Round "6.9"]
[White "Karelina, Polina"]
[Black "Callender, Jessica"]
[Result "1-0"]
[ECO "B23"]
[WhiteElo "1898"]
[BlackElo "1579"]
[PlyCount "75"]
[EventDate "2024.09.05"]
[EventType "team-tourn"]
[EventCountry "HUN"]
[WhiteTeam "Bahamas"]
[BlackTeam "Guyana"]
[WhiteTeamCountry "BAH"]
[BlackTeamCountry "GUY"]
[TimeControl "40/5400+30:1800+30"]

1. e4 c5 2. Nc3 e6 3. g3 d5 4. Bg2 dxe4 5. Nxe4 Be7 6. Nf3 Nf6 7. Nc3 Nc6 8. O-O O-O 9. d3 b6 10. Ne5 Nd5 11. Nxc6 Qd6 12. Nxe7+ Qxe7 13. Nxd5 exd5 14. Bxd5 Bb7 15. Qf3 Bxd5 16. Qxd5 Rad8 17. Qf3 Rd6 18. Bf4 Re6 19. Rad1 Qf6 20. c3 Rfe8 21. Rd2 g5 22. Qg4 h6 23. Be3 Kh7 24. h4 gxh4 25. Qxh4 Qf3 26. Qf4 Qh5 27. Kg2 Qd5+ 28. Qf3 Qd6 29. Bf4 Qe7 30. d4 Rg8 31. d5 Rf6 32. d6 Qd7 33. Re1 Re6 34. Rxe6 fxe6 35. Re2 Rf8 36. Qe4+ Kg8 37. Qxe6+ Qxe6 38. Rxe6 1-0

[Event "45th FIDE Womens Olympiad 2024"]
[Site "Budapest"]
[Date "2024.09.16"]
[Round "6.10"]
[White "Munguntuul, Batkhuyag"]
[Black "Javakhishvili, Lela"]
[Result "1/2-1/2"]
[ECO "C64"]
[WhiteElo "2346"]
[BlackElo "2446"]
[Annotator "TA"]
[PlyCount "100"]
[EventDate "2024.09.05"]
[EventType "team-tourn"]
[EventCountry "HUN"]
[SourceTitle "playchess.com"]
[Source "ChessBase"]
[SourceQuality "1"]
[WhiteTeam "Mongolia"]
[BlackTeam "Georgia"]
[WhiteTeamCountry "MGL"]
[BlackTeamCountry "GEO"]
[TimeControl "40/5400+30:1800+30"]

{[%evp 21,100,31,25,45,38,34,33,-188,7,9,6,0,11,5,7,0,0,-43,20,8,11,17,19,13,10,-30,0,0,0,0,0,0,0,0,0,-26,-9,-13,-25,-27,0,0,0,0,7,6,3,-8,0,0,0,0,0,0,0,0,0,0,31,15,31,19,19,0,0,0,0,0,0,0,0,0,8,8,8,0,0,0,0,0,0]} 1. e4 {[%emt 0:00:01]} e5 {[%emt 0:00:11]} 2. Nf3 {[%emt 0:00:03]} Nc6 {[%emt 0:00:08]} 3. Bb5 {[%emt 0:00:04]} a6 {[%emt 0:00:10]} 4. Ba4 {[%emt 0:00:03]} Bc5 {[%emt 0:00:07]} 5. c3 {[%emt 0:02:13]} Nge7 {[%emt 0:00:10]} 6. O-O {[%emt 0:01:16]} Ng6 {[%emt 0:00:13] 6...Ba7 is the modern continuation. C64: Ruy Lopez: Classical Defence (3...Bc5) except 4 0-0 Nf6.} 7. d4 {[%emt 0:00:30]} Ba7 {[%emt 0:00:13]} 8. Bg5 {[%emt 0:00:31]} f6 {[%emt 0:00:22]} 9. Be3 {[%emt 0:00:15]} O-O {[%emt 0:00:21]} 10. Nbd2 {[%emt 0:05:55]} Kh8 {[%emt 0:00:23]} 11. Re1 {[%emt 0:01:53]} exd4 {[%emt 0:00:27]} 12. Nxd4 {[%emt 0:02:18]} Nxd4 {[%emt 0:00:12]} 13. cxd4 {[%emt 0:00:13]} d5 {[%emt 0:01:50]} 14. Qh5 $2 {[%emt 0:11:32] [#]} (14. exd5 $14 {keeps the upper hand.} Ne7 15. d6 cxd6 16. Nf3) 14... Be6 $146 {[%emt 0:02:33]} (14... dxe4 15. Nxe4 Be6 16. Rad1 $14) (14... c5 $1 $19 {[%cal Rc5d4]} 15. Nf1 (15. Qxd5 $2 cxd4 16. Nf1 dxe3 $19) (15. dxc5 $2 d4 $19) 15... cxd4) ({Predecessor:} 14... c5 15. Nf3 cxd4 16. Bd2 Bd7 17. Bc2 Qc8 18. Rac1 Bg4 19. Qxd5 Rd8 20. Bd1 Qd7 21. Qxd7 Rxd7 {½-½ Borgaonkar,A (2372)-Prohaszka,P (2581) Budapest Spring op 2024 (2)}) 15. Bc2 $11 {[%emt 0:12:57]} Qd7 {[%emt 0:10:17]} 16. h3 {[%emt 0:03:16]} (16. Nb3 {simplifies} Rae8 17. h3 Bf7 18. exd5 Qxd5 19. Bxg6 Qxh5 20. Bxh5 Bxh5 21. Nc5) 16... Bf7 {[%emt 0:04:41]} 17. e5 {[%emt 0:09:22]} fxe5 {[%emt 0:09:14]} 18. dxe5 {[%emt 0:04:53]} d4 $1 {[%emt 0:04:07]} 19. Bf5 {[%emt 0:02:40]} (19. e6 $5 Qc6 (19... Qxe6 20. Bxd4 Qc6 21. Be4 $14) 20. Be4 Qxe6 21. Bg5 $15) 19... Qe8 {[%emt 0:04:48]} (19... Qd5 $15 20. Bg5 Qxg2+ 21. Kxg2 Nf4+ 22. Bxf4 Bxh5 23. Bxh7 Kxh7 (23... Rxf4 24. Re4 $11)) 20. Bg5 $11 {[%emt 0:08:01]} Be6 {[%emt 0:03:08]} 21. Be4 {[%emt 0:04:25]} Bf5 {[%emt 0:06:38]} 22. e6 {[%emt 0:10:04]} (22. Bxb7 Rb8 23. Be4 Rxb2 $15) 22... d3 {[%emt 0:13:02]} (22... Qxe6 $6 23. Bxb7 Qd7 24. Bxa8 Rxa8 25. Nf3 $16) 23. Nf3 {[%emt 0:03:17]} ({Reject} 23. Bxb7 Bxf2+ 24. Kh1 Rb8 $17) 23... Bxe4 {[%emt 0:05:45]} (23... Bxe6 $2 {perishes.} 24. Bxg6 (24. Bxd3 Rxf3 25. Qxf3 Qf7 $18) 24... Qxg6 25. Qxg6 hxg6 26. Rxe6 $18) (23... Qxe6 {is interesting.} 24. Bxd3 Qd5 25. Bxf5 Qxf5 26. Qg4 Qc2) 24. Rxe4 {[%emt 0:00:03]} Ne5 {[%emt 0:00:43]} 25. Qxe8 {[%emt 0:01:25]} Nxf3+ {[%emt 0:00:12]} 26. gxf3 {[%emt 0:00:02]} Raxe8 {[%emt 0:00:48]} 27. Kg2 {[%emt 0:01:34]} Rf5 {[%emt 0:01:38]} 28. Bd2 {[%emt 0:08:01]} Bc5 {[%emt 0:03:56]} 29. Bc3 {[%emt 0:00:50]} Kg8 {[%emt 0:01:37]} 30. Rd1 {[%emt 0:00:49]} Rg5+ {[%emt 0:04:06]} 31. Rg4 {[%emt 0:03:58]} Rxg4+ {[%emt 0:00:33]} 32. fxg4 {[%emt 0:00:01]} Rxe6 {[%emt 0:00:34]} 33. Rxd3 {[%emt 0:00:01]} Bd6 {[%emt 0:02:46]} 34. f4 {[%emt 0:01:41]} Bxf4 {[%emt 0:03:43]} 35. Rd8+ {[%emt 0:00:06]} Kf7 {[%emt 0:00:03]} 36. Rd7+ {[%emt 0:00:09]} Re7 {[%emt 0:01:55]} 37. Rxe7+ {[%emt 0:00:03]} Kxe7 {[%emt 0:00:03]} 38. Bxg7 {[%emt 0:00:12]} Ke6 {[%emt 0:00:55]} 39. Kf3 {[%emt 0:01:50]} Bc1 {[%emt 0:14:04]} 40. Ke4 {[%emt 0:00:11]} Bg5 {[%emt 0:01:44]} 41. Be5 {[%emt 0:33:11]} c5 $1 {[%emt 0:31:07]} 42. a4 {[%emt 0:00:00]} b5 {[%emt 0:00:00]} 43. axb5 {[%emt 0:00:00]} axb5 {[%emt 0:00:00]} 44. b3 {[%emt 0:00:00]} c4 {[%emt 0:00:00]} 45. bxc4 {[%emt 0:00:00]} bxc4 {[%emt 0:00:00]} 46. Bc3 {[%emt 0:00:00]} h5 {[%emt 0:00:00]} 47. gxh5 {[%emt 0:00:00]} Bf6 {[%emt 0:00:00]} 48. Bxf6 {[%emt 0:00:00]} Kxf6 {[%emt 0:00:00]} 49. h4 {[%emt 0:00:00]} Kg7 {[%emt 0:00:00]} 50. Kd4 {[%emt 0:00:00]} Kh6 {[%emt 0:00:00]} 1/2-1/2

[Event "45th FIDE Womens Olympiad 2024"]
[Site "Budapest"]
[Date "2024.09.16"]
[Round "6.10"]
[White "Joshi, Aditi Narayan"]
[Black "Thomas, Nelissa"]
[Result "1/2-1/2"]
[ECO "A84"]
[WhiteElo "1546"]
[BlackElo "1631"]
[PlyCount "75"]
[EventDate "2024.09.05"]
[EventType "team-tourn"]
[EventCountry "HUN"]
[WhiteTeam "Guyana"]
[BlackTeam "Bahamas"]
[WhiteTeamCountry "GUY"]
[BlackTeamCountry "BAH"]
[TimeControl "40/5400+30:1800+30"]

1. d4 d5 2. c4 c6 3. e3 e6 4. Nf3 f5 5. Ne5 Nf6 6. Be2 g6 7. h4 Rg8 8. a3 Nbd7 9. Nxd7 Bxd7 10. b4 b5 11. c5 h5 12. Nd2 Bg7 13. Nf3 Ng4 14. Bb2 Bf6 15. a4 a6 16. g3 Rh8 17. Ne5 Bxe5 18. dxe5 Kf7 19. Qd4 Rf8 20. Qf4 Kg7 21. Bc1 Rh8 22. f3 Nh6 23. g4 hxg4 24. fxg4 Nxg4 25. Qg3 Nh6 26. Rg1 Be8 27. Bh5 f4 28. Qxf4 Nf5 29. Bg4 Qxh4+ 30. Kd1 Rf8 31. Bxf5 Qxf4 32. exf4 Rxf5 33. a5 Bf7 34. Ke2 Rh8 35. Rg2 Rh1 36. Kf3 Kh6 37. Bb2 Rh3+ 38. Rg3 1/2-1/2

[Event "45th FIDE Womens Olympiad 2024"]
[Site "Budapest"]
[Date "2024.09.16"]
[Round "6.11"]
[White "Khotenashvili, Bella"]
[Black "Nomin-Erdene, Davaademberel"]
[Result "1/2-1/2"]
[ECO "D30"]
[WhiteElo "2432"]
[BlackElo "2319"]
[Annotator "TA"]
[PlyCount "93"]
[EventDate "2024.09.05"]
[EventType "team-tourn"]
[EventCountry "HUN"]
[SourceTitle "playchess.com"]
[Source "ChessBase"]
[SourceQuality "1"]
[WhiteTeam "Georgia"]
[BlackTeam "Mongolia"]
[WhiteTeamCountry "GEO"]
[BlackTeamCountry "MGL"]
[TimeControl "40/5400+30:1800+30"]

{[%evp 9,93,25,13,13,22,14,14,0,22,20,35,12,62,59,47,0,11,8,13,0,0,6,53,62,72,23,30,26,23,24,22,28,20,20,19,21,27,25,23,18,26,28,19,18,20,20,26,17,25,17,24,0,0,0,3,0,2,0,0,0,0,0,0,4,4,0,0,0,0,0,0,0,0,0,0,0,0,0,0,0,0,0,8,8,8,8]} 1. d4 {[%emt 0:00:04]} d5 {[%emt 0:00:05]} 2. c4 {[%emt 0:00:09]} c6 {[%emt 0:00:09]} 3. Nf3 {[%emt 0:00:06]} e6 {[%emt 0:00:05]} 4. Nbd2 {[%emt 0:02:30]} f5 {[%emt 0:17:43]} 5. g3 {[%emt 0:02:45]} Nd7 {[%emt 0:00:08]} 6. Qc2 {[%emt 0:05:00]} Bd6 {[%emt 0:01:04]} 7. cxd5 {[%emt 0:10:57]} cxd5 {[%emt 0:00:54]} 8. Nb3 {[%emt 0:00:03]} Ngf6 {[%emt 0:02:56]} 9. Bf4 {[%emt 0:00:10]} Qe7 {[%emt 0:15:37]} 10. Rc1 {[%emt 0:06:15] [#] Qxc8+ would now be deadly.} O-O {[%emt 0:06:14]} (10... Bxf4 $11 11. gxf4 O-O) 11. Bxd6 $1 $14 {[%emt 0:09:52]} Qxd6 {[%emt 0:02:39]} 12. Qc7 {[%emt 0:02:29]} (12. e3 $14 {feels stronger.}) 12... Qb4+ {[%emt 0:00:07]} 13. Nfd2 {[%emt 0:00:53]} Ne4 {[%emt 0:09:00]} 14. a3 {[%emt 0:00:13]} Qa4 {[%emt 0:00:06]} 15. e3 {[%emt 0:10:48]} Nxd2 {[%emt 0:08:06]} (15... Ndf6 $11) 16. Nxd2 {[%emt 0:00:21]} Nf6 {[%emt 0:00:11]} 17. Be2 {[%emt 0:11:50] White is more active.} (17. Bd3 $16) 17... Bd7 $11 {[%emt 0:01:20]} 18. O-O {[%emt 0:01:32][%cal Oe2d3]} ({Much weaker is} 18. Qxb7 Rfb8 19. Qa6 Qxa6 (19... Rxb2 20. Nf3 $11) 20. Bxa6 Rb6 $11 (20... Rxb2 21. Nf3 $11)) 18... Rfc8 {[%emt 0:01:32]} 19. Qd6 {[%emt 0:02:58]} Rc2 {[%emt 0:08:10]} 20. b3 {[%emt 0:07:11]} Qc6 {[%emt 0:00:03]} 21. Qxc6 {[%emt 0:01:20]} Rxc6 {[%emt 0:00:04]} 22. Rxc6 {[%emt 0:01:13]} Bxc6 {[%emt 0:00:03]} 23. Rc1 {[%emt 0:03:42]} Rc8 {[%emt 0:00:05]} 24. Nf3 {[%emt 0:04:44]} Bd7 {[%emt 0:01:07]} 25. Rxc8+ {[%emt 0:02:43]} Bxc8 {[%emt 0:00:05][%mdl 4096] Endgame. KBN-KBN} 26. Ne5 {[%emt 0:00:03]} Kf8 {[%emt 0:08:33]} 27. f3 {[%emt 0:00:57]} Ke7 {[%emt 0:00:07]} 28. Kf2 {[%emt 0:01:22]} Nd7 {[%emt 0:03:02]} 29. Nd3 {[%emt 0:02:32]} Kd6 {[%emt 0:00:16]} 30. h4 {[%emt 0:00:32]} b6 {[%emt 0:02:30] The position is equal.} 31. Nf4 {[%emt 0:02:29]} Nf6 {[%emt 0:00:13]} 32. Bd3 {[%emt 0:01:40]} Bd7 {[%emt 0:01:13]} 33. Ne2 {[%emt 0:00:31]} h6 {[%emt 0:03:10]} 34. Nf4 {[%emt 0:04:15]} Be8 {[%emt 0:00:11]} 35. Nh3 {[%emt 0:02:30]} Bd7 {[%emt 0:00:46]} 36. Ke2 {[%emt 0:00:53]} Be8 {[%emt 0:00:24]} 37. a4 {[%emt 0:00:30]} Bd7 {[%emt 0:01:40]} 38. Kf2 {[%emt 0:00:44]} Be8 {[%emt 0:00:04]} 39. Be2 {[%emt 0:00:27]} a5 {[%emt 0:02:19]} 40. Nf4 {[%emt 0:00:16]} Ke7 {[%emt 0:04:32]} 41. Nd3 {[%emt 0:06:36]} Kd6 {[%emt 0:00:12]} 42. Ne5 {[%emt 0:02:00]} Ke7 {[%emt 0:00:25]} 43. Bd3 {[%emt 0:01:52]} Nd7 {[%emt 0:08:10]} 44. Bb5 {[%emt 0:06:23]} Nxe5 {[%emt 0:00:08]} 45. dxe5 {[%emt 0:00:05]} Bxb5 {[%emt 0:00:41]} 46. axb5 {[%emt 0:00:01]} g5 {[%emt 0:03:10]} 47. h5 {[%emt 0:01:05] Weighted Error Value: White=0.06 (flawless) /Black=0.05 (flawless) .  Mistake:       	White=2     	Black=2      OK:         	White=14    	Black=20     Best:        	White=1     	---        Strong:       	White=1     	---} 1/2-1/2

[Event "45th FIDE Womens Olympiad 2024"]
[Site "Budapest"]
[Date "2024.09.16"]
[Round "6.11"]
[White "Johnson, Daijah"]
[Black "Clement, Ciel Desiree"]
[Result "1-0"]
[ECO "D53"]
[WhiteElo "1624"]
[BlackElo "1460"]
[PlyCount "83"]
[EventDate "2024.09.05"]
[EventType "team-tourn"]
[EventCountry "HUN"]
[WhiteTeam "Bahamas"]
[BlackTeam "Guyana"]
[WhiteTeamCountry "BAH"]
[BlackTeamCountry "GUY"]
[TimeControl "40/5400+30:1800+30"]

1. d4 Nf6 2. c4 e6 3. Nc3 d5 4. Bg5 Be7 5. Nf3 h6 6. Bxf6 Bxf6 7. e3 Nd7 8. cxd5 exd5 9. Nxd5 Nb6 10. Nxb6 axb6 11. Be2 O-O 12. O-O c5 13. h3 Qd6 14. Qc2 cxd4 15. exd4 Be6 16. a3 Rac8 17. Qd2 Rc7 18. Rac1 Rd7 19. Rfd1 Bb3 20. Re1 Qd5 21. Qb4 Rd6 22. Bc4 Bxc4 23. Rxc4 Rfd8 24. Rec1 Be7 25. Rc8 Rxc8 26. Rxc8+ Kh7 27. Qc4 Qxc4 28. Rxc4 Rc6 29. Rxc6 bxc6 30. Ne5 c5 31. dxc5 Bxc5 32. Nxf7 Kg6 33. Ne5+ Kf5 34. Nd3 Bd4 35. b3 Ke4 36. Ne1 Bb2 37. a4 Kd4 38. b4 Kc3 39. a5 Kxb4 40. a6 Bc3 41. a7 Bxe1 42. a8=Q 1-0

[Event "45th FIDE Womens Olympiad 2024"]
[Site "Budapest"]
[Date "2024.09.16"]
[Round "6.12"]
[White "Khuslen, Erdenebayar"]
[Black "Melia, Salome"]
[Result "0-1"]
[ECO "D35"]
[WhiteElo "2229"]
[BlackElo "2293"]
[Annotator "TA"]
[PlyCount "116"]
[EventDate "2024.09.05"]
[EventType "team-tourn"]
[EventCountry "HUN"]
[SourceTitle "playchess.com"]
[Source "ChessBase"]
[SourceQuality "1"]
[WhiteTeam "Mongolia"]
[BlackTeam "Georgia"]
[WhiteTeamCountry "MGL"]
[BlackTeamCountry "GEO"]
[TimeControl "40/5400+30:1800+30"]

{[%evp 17,116,15,14,16,18,21,18,20,14,13,18,11,29,12,19,0,0,0,-2,-4,0,-5,0,0,0,0,0,0,91,85,62,-19,-23,-8,27,32,29,0,374,162,162,171,167,175,171,159,170,170,170,174,154,159,152,-112,-116,-122,-121,-120,-106,-100,-106,-120,-113,-201,-211,-317,-335,-302,-293,-303,-267,-362,-371,-371,-370,-362,-355,-439,-439,-638,-632,-2408,-2408,-2418,-2418,-2240,-2194,-1832,-1720,-1570,-1452,-29952,-1242,-29976,-29977,-29977,-29978,-29978,-29979,-29979,-29980]} 1. d4 {[%emt 0:00:06]} d5 {[%emt 0:00:09]} 2. c4 {[%emt 0:00:27]} e6 {[%emt 0:00:04]} 3. Nc3 {[%emt 0:00:31]} Nf6 {[%emt 0:00:07]} 4. cxd5 {[%emt 0:00:29]} exd5 {[%emt 0:00:10]} 5. Bg5 {[%emt 0:00:35]} c6 {[%emt 0:00:15]} 6. e3 {[%emt 0:00:26]} h6 {[%emt 0:00:31]} 7. Bh4 {[%emt 0:01:07]} Be7 {[%emt 0:00:20]} 8. Bd3 {[%emt 0:00:30]} O-O {[%emt 0:00:43]} 9. Nge2 {[%emt 0:02:56] D35: Queen's Gambit Declined: Exchange Variation.} Re8 {[%emt 0:00:19]} 10. O-O {[%emt 0:00:53]} Nh5 {[%emt 0:01:10]} 11. Bxe7 {[%emt 0:01:45]} Qxe7 {[%emt 0:00:06]} 12. Qd2 {[%emt 0:01:09]} Nd7 {[%emt 0:01:56]} 13. Rae1 {[%emt 0:00:48]} Nf8 {[%emt 0:00:46]} 14. Nc1 {[%emt 0:02:14]} Bd7 {[%emt 0:02:29]} 15. f3 {[%emt 0:03:37]} Rad8 {[%emt 0:00:24]} 16. Qf2 {[%emt 0:08:46]} Bc8 {[%emt 0:01:08]} 17. Kh1 {[%emt 0:08:28]} b6 $146 {[%emt 0:04:53]} ({Predecessor:} 17... Ne6 18. Nb3 b6 19. Rd1 Nf6 20. Qh4 c5 21. dxc5 bxc5 22. Bf5 c4 23. Bxe6 fxe6 {½-½ Kashlinskaya,A (2491)-Sliwicka,A (2240) POL-chT Ekstraliga 2022 (1.1)}) 18. e4 {[%emt 0:07:33]} dxe4 {[%emt 0:15:09]} 19. fxe4 {[%emt 0:05:12]} Ne6 {[%emt 0:06:46]} 20. N1e2 {[%emt 0:05:11]} Qf6 {[%emt 0:04:26]} 21. Qe3 {[%emt 0:06:18]} Qg5 {[%emt 0:01:56]} 22. Qf3 {[%emt 0:04:14]} Re7 {[%emt 0:17:38] [#]} (22... Rf8 $1 $11 {keeps the balance.}) 23. d5 $1 $16 {[%emt 0:21:12]} Nc5 {[%emt 0:03:22]} 24. Bc4 {[%emt 0:01:35]} (24. Bc2 $14 Bg4 25. Qf2 cxd5 26. Nxd5) 24... Bg4 $11 {[%emt 0:17:46]} 25. Qf2 {[%emt 0:00:19]} Bxe2 {[%emt 0:05:00]} 26. Rxe2 {[%emt 0:01:23]} cxd5 {[%emt 0:01:07]} 27. exd5 {[%emt 0:02:25]} Nb7 $2 {[%emt 0:11:01][%mdl 8192]} (27... Rf8 $11 {and Black has nothing to worry.}) 28. Ne4 {[%emt 0:02:02]} (28. g4 $142) 28... Rxe4 $18 {[%emt 0:02:26]} 29. Rxe4 {[%emt 0:01:02]} (29. Qxf7+ Kh8 30. Rxe4 Nd6) 29... Nd6 {[%emt 0:00:09]} 30. Rd4 {[%emt 0:00:16]} Nf6 {[%emt 0:00:35]} 31. Bb3 {[%emt 0:01:24]} Re8 {[%emt 0:00:29]} 32. Qf4 {[%emt 0:01:55]} Re2 {[%emt 0:01:18]} 33. Qxg5 {[%emt 0:00:44]} (33. Qxd6 $2 Qxg2#) 33... hxg5 {[%emt 0:00:02]} 34. Rb1 {[%emt 0:00:23]} Nfe4 {[%emt 0:01:18]} 35. Bc4 $2 {[%emt 0:02:45] [#]} (35. Kg1 $16 {and life is bright.}) 35... Rd2 $1 $17 {[%emt 0:00:26]} 36. Rxe4 {[%emt 0:05:01]} Nxe4 {[%emt 0:00:02]} 37. Kg1 {[%emt 0:00:17]} Nf6 {[%emt 0:01:28]} 38. Re1 {[%emt 0:01:05]} Kf8 $1 {[%emt 0:00:21]} (38... Rxb2 $6 39. d6 $11) (38... Nxd5 $2 39. Re8+ Kh7 40. Rd8 $18) 39. b4 {[%emt 0:02:22]} Nxd5 {[%emt 0:00:54]} 40. b5 {[%emt 0:00:08]} (40. Bb5 $17 {keeps fighting.} Nf6 (40... Rxa2 41. Re8#) 41. Bc4) 40... Nf4 $19 {[%emt 0:00:37]} 41. g3 {[%emt 0:30:47]} (41. Bf1 $142) 41... Nh3+ $19 {[%emt 0:06:44]} 42. Kh1 {[%emt 0:00:00]} g4 {[%emt 0:01:26]} 43. Bb3 {[%emt 0:00:00]} Ng5 {[%emt 0:03:34]} 44. Bd1 {[%emt 0:00:00]} f5 {[%emt 0:01:44]} (44... Rxa2 $2 45. Bxg4 f5 46. Be2 $17 (46. Bxf5 {gets mated.} Nf3)) 45. a4 {[%emt 0:00:00]} g6 {[%emt 0:02:29]} 46. Be2 {[%emt 0:00:00]} Ra2 {[%emt 0:02:18]} 47. Bd1 {[%emt 0:00:00]} Ra1 {[%emt 0:00:39]} 48. Kg2 {[%emt 0:00:00]} (48. Rf1 $142) 48... Nf3 $19 {[%emt 0:03:34]} 49. Rf1 {[%emt 0:00:00]} Ra2+ {[%emt 0:01:12]} 50. Rf2 {[%emt 0:00:00]} Rxf2+ {[%emt 0:00:27]} 51. Kxf2 {[%emt 0:00:00]} Nxh2 {[%emt 0:00:06]} 52. Ke3 {[%emt 0:00:00]} Ke7 {[%emt 0:00:12]} 53. Be2 {[%emt 0:00:00]} g5 {[%emt 0:01:16]} 54. Kd4 {[%emt 0:00:00]} Kd6 {[%emt 0:00:11]} (54... f4 $142 55. Bxg4 Nxg4 56. gxf4 gxf4 57. Ke4 Kd6 58. Kxf4 Kc5 59. Ke4 Kb4 60. Kd5 Kxa4 61. Kd4 Kxb5 62. Kd5 a5 63. Kd4 Kb4 64. Kd3 a4 65. Ke4 a3 66. Kf5 a2 67. Kxg4 a1=Q (67... a1=B {leads to mate.} 68. Kf5 b5 69. Kg5 Kc4 70. Kh6 b4 71. Kg6 b3 72. Kf5 b2 73. Ke6 b1=Q 74. Kd6 Qb6+ 75. Ke7 Kd5 76. Kf8 Ke6 77. Kg8 Qd4 78. Kh7 Qg7#) 68. Kg5 Qe5+ 69. Kg4 Kc3 70. Kf3 Kd3 71. Kf2 Qe3+ 72. Kf1 b5 73. Kg2 Ke2 74. Kh2 Kf1 75. Kh1 Qh6#) 55. Bd3 {[%emt 0:00:00]} f4 {[%emt 0:03:29]} 56. Ke4 {[%emt 0:00:59]} fxg3 {[%emt 0:00:06]} 57. Ke3 {[%emt 0:00:02]} g2 {[%emt 0:00:20]} 58. Kf2 {[%emt 0:00:05]} Nf3 {[%emt 0:00:04]} 0-1

[Event "45th FIDE Womens Olympiad 2024"]
[Site "Budapest"]
[Date "2024.09.16"]
[Round "6.12"]
[White "Archibald, Treskole"]
[Black "Pride, Chika"]
[Result "0-1"]
[ECO "C41"]
[WhiteElo "1400"]
[BlackElo "1578"]
[PlyCount "98"]
[EventDate "2024.09.05"]
[EventType "team-tourn"]
[EventCountry "HUN"]
[WhiteTeam "Guyana"]
[BlackTeam "Bahamas"]
[WhiteTeamCountry "GUY"]
[BlackTeamCountry "BAH"]
[TimeControl "40/5400+30:1800+30"]

1. e4 e5 2. Nf3 d6 3. d4 Qe7 4. Be2 Nf6 5. Nc3 c6 6. dxe5 dxe5 7. O-O Qc7 8. Be3 Nbd7 9. Nd2 b5 10. a3 Be7 11. f3 O-O 12. Rf2 Bb7 13. Qf1 Bc5 14. Bxc5 Nxc5 15. b4 Ne6 16. Nb3 Qb6 17. Bd3 a6 18. Kh1 c5 19. bxc5 Nxc5 20. Be2 Nxb3 21. cxb3 Qd4 22. Qe1 Rac8 23. Rc1 Rc7 24. Bf1 Rfc8 25. Rfc2 h6 26. h3 Nh5 27. Kh2 Qb6 28. Rd1 Qa5 29. Qh4 Rxc3 30. Rxc3 Qxc3 31. Rd8+ Rxd8 32. Qxd8+ Kh7 33. Qd7 Bc8 34. Qxf7 Nf4 35. a4 Qe1 36. Qc7 Qxf1 37. Qc2 Ne2 38. Qc5 Qc1 39. Qf2 Qg1+ 40. Qxg1 Nxg1 41. Kxg1 Be6 42. axb5 axb5 43. b4 Kg6 44. g4 Kg5 45. Kf2 Kf4 46. h4 g6 47. g5 h5 48. Kg2 Bc4 49. Kf2 Bd3 {0-} 0-1